bitfinex-derivatives/quotes_SOLF0:USTF0_20250821
["timestamp","ask_amount","ask_price","bid_price","bid_amount"]
[1755787926453,2.9,184.86,184.74,2.8]
[1755787926648,2.9,184.86,184.76,5.4127]
[1755787926852,2.9,184.86,184.77,141.72]
[1755787927851,2.9,184.86,184.77,138.92]
[1755787928058,2.9,184.86,184.75,141.72]
[1755787930358,2.9,184.86,184.75,2.8]
[1755787930654,2.9,184.84,184.75,2.8]
[1755787931160,4.81876232,184.79,184.64,4.81876232]
[1755787931360,2.9,184.78,184.67,2.8]
[1755787931559,2.9,184.78,184.69,5.4148]
[1755787931756,2.9,184.78,184.7,2.8]
[1755787932960,2.9,184.78,184.7,8.2144]
[1755787933660,4.81876232,184.8,184.72,2.8]
[1755787934954,4.81876232,184.8,184.66,4.81876232]
[1755787935259,2.9,184.79,184.66,4.81876232]
[1755787935461,7.71876232,184.83,184.7,2.8]
[1755787936061,7.71876232,184.86,184.75,5.4129]
[1755787936260,7.71876232,184.86,184.75,8.2129]
[1755787936465,7.71876232,184.86,184.75,2.8]
[1755787936858,7.71876232,184.86,184.76,5.4129]
[1755787937061,7.71876232,184.86,184.75,2.8]
[1755787937462,4.81876232,184.83,184.75,2.8]
[1755787937659,2.9,184.82,184.73,138.8]
[1755787937862,2.9,184.82,184.71,2.8]
[1755787938265,4.81876232,184.8,184.71,2.8]
[1755787938965,2.9,184.82,184.71,2.8]
[1755787939362,2.9,184.82,184.74,2.8]
[1755787939764,4.81876232,184.81,184.7,141.6]
[1755787940064,2.9,184.8,184.7,141.6]
[1755787940268,4.81876232,184.78,184.7,2.8]
[1755787940569,4.81876232,184.75,184.66,141.58]
[1755787942467,2.9,184.74,184.66,2.8]
[1755787942673,2.9,184.74,184.63,138.76]
[1755787942876,4.81876232,184.73,184.63,138.76]
[1755787943769,537.94205547,184.87,184.64,2.8]
[1755787943770,4.81876232,184.76,184.64,2.8]
[1755787944072,4.81876232,184.77,184.68,5.4152]
[1755787944271,4.81876232,184.77,184.68,2.8]
[1755787945172,537.94205547,184.87,184.68,2.8]
[1755787945173,4.81876232,184.8,184.68,2.8]
[1755787945370,4.81876232,184.8,184.7,5.4146]
[1755787945573,2.79,184.79,184.71,138.76]
[1755787946262,2.79,184.79,184.68,2.8]
[1755787946470,2.79,184.79,184.69,144.1749]
[1755787946769,2.79,184.79,184.69,138.76]
[1755787946968,2.79,184.79,184.7,5.4144]
[1755787947275,4.81876232,184.77,184.68,141.54]
[1755787947468,4.81876232,184.74,184.64,8.2164]
[1755787947671,4.81876232,184.74,184.64,141.54]
[1755787948074,4.81876232,184.74,184.64,146.9564]
[1755787948269,4.81876232,184.74,184.64,141.54]
[1755787948670,4.81876232,184.74,184.65,5.4161]
[1755787948973,4.81876232,184.74,184.64,141.54]
[1755787949172,4.81876232,184.71,184.64,138.74]
[1755787949373,4.81876232,184.72,184.64,146.9564]
[1755787949567,4.81876232,184.72,184.64,141.54]
[1755787950169,2.79,184.73,184.64,141.54]
[1755787950376,4.81876232,184.71,184.64,146.9564]
[1755787951077,2.79,184.73,184.64,141.54]
[1755787951474,7.60876232,184.77,184.69,5.4149]
[1755787951875,7.60876232,184.77,184.68,2.8]
[1755787951876,2.79,184.77,184.68,2.8]
[1755787952076,2.79,184.77,184.7,5.4144]
[1755787952372,4.81876232,184.79,184.68,2.8]
[1755787954067,2.79,184.81,184.69,2.8]
[1755787954674,2.79,184.81,184.73,8.2136]
[1755787954868,2.79,184.86,184.75,2.8]
[1755787955173,4.81876232,184.89,184.79,2.8]
[1755787955485,2.79,184.91,184.79,2.8]
[1755787956072,7.60876232,184.95,184.81,2.8]
[1755787956274,7.60876232,184.95,184.83,2.8]
[1755787956473,2.79,184.95,184.83,7.61876232]
[1755787956779,2.79,184.95,184.84,138.7]
[1755787957175,4.81876232,184.98,184.87,2.8]
[1755787957380,2.79,185.0,184.87,2.8]
[1755787957780,2.79,185.0,184.89,4.81876232]
[1755787957981,0.94117647,185.03,184.9,2.8]
[1755787958478,7.60876232,185.04,184.93,2.8]
[1755787958680,7.60876232,185.04,184.94,138.68]
[1755787959172,7.60876232,185.04,184.93,2.8]
[1755787960372,2.79,185.03,184.93,2.8]
[1755787960578,2.79,185.0,184.9,138.62]
[1755787961479,4.81876232,185.01,184.91,2.8]
[1755787961676,7.60876232,185.04,184.91,2.8]
[1755787961872,7.60876232,185.04,184.91,8.2085]
[1755787962078,7.60876232,185.04,184.91,2.8]
[1755787962280,7.60876232,185.04,184.92,2.8]
[1755787964083,7.60876232,185.04,184.92,8.2082]
[1755787964279,7.60876232,185.04,184.92,2.8]
[1755787965684,7.60876232,185.04,184.94,5.4076]
[1755787965886,2.79,185.04,184.94,5.4076]
[1755787966086,2.79,185.04,184.95,2.8]
[1755787967480,7.60876232,185.04,184.88,363.78]
[1755787967684,7.60876232,185.04,184.9,2.8]
[1755787968086,7.60876232,185.04,184.93,2.8]
[1755787968386,2.79,185.04,184.93,2.8]
[1755787969689,2.79,185.04,184.97,2.8]
[1755787969885,4.81876232,185.07,184.97,141.28]
[1755787970090,2.79,185.08,184.97,146.6866]
[1755787970498,2.79,185.08,184.97,141.28]
[1755787971490,2.79,185.08,184.98,138.48]
[1755787971695,2.79,185.08,184.97,2.8]
[1755787971895,2.79,185.08,184.98,138.46]
[1755787972092,2.79,185.08,184.97,2.8]
[1755787972093,2.79,185.08,184.97,141.26]
[1755787974002,2.87,185.05,184.97,2.8]
[1755787974202,4.81876232,185.03,184.96,138.44]
[1755787974394,4.81876232,185.0,184.93,2.79]
[1755787975397,4.81876232,185.03,184.93,2.79]
[1755787977104,2.87,185.02,184.93,141.21]
[1755787978404,2.87,185.02,184.93,2.79]
[1755787978601,4.81876232,185.0,184.93,2.79]
[1755787978803,2.87,184.99,184.91,138.4]
[1755787979599,2.87,184.99,184.9,138.4]
[1755787979806,2.87,184.99,184.92,5.4082]
[1755787980100,2.87,184.99,184.9,138.4]
[1755787980404,4.81876232,185.0,184.88,363.78]
[1755787980405,2.87,184.96,184.88,363.78]
[1755787980602,2.87,184.96,184.88,502.16]
[1755787980796,4.81876232,184.97,184.88,504.95]
[1755787980995,7.68876232,185.0,184.88,504.95]
[1755787982309,2.87,184.99,184.88,504.95]
[1755787982609,7.68876232,184.96,184.88,504.95]
[1755787984309,7.68876232,184.96,184.88,502.16]
[1755787984710,2.87,184.92,184.88,138.38]
[1755787985215,4.81876232,184.9,184.8,2.79]
[1755787985509,4.81876232,184.9,184.81,138.36]
[1755787986403,4.81876232,184.9,184.82,138.36]
[1755787986601,4.81876232,184.87,184.81,138.36]
[1755787986804,4.81876232,184.84,184.78,363.36]
[1755787987010,4.81876232,184.84,184.78,501.74]
[1755787987411,4.81876232,184.89,184.79,2.79]
[1755787987811,2.87,184.88,184.79,2.79]
[1755787989907,4.81876232,184.89,184.79,2.79]
[1755787990314,7.68876232,184.89,184.79,2.79]
[1755787991107,2.87,184.93,184.79,2.79]
[1755787991307,7.68876232,184.93,184.79,2.79]
[1755787991507,4.81876232,184.93,184.79,4.81876232]
[1755787991713,4.81876232,184.93,184.8,2.79]
[1755787992012,4.81876232,184.93,184.83,2.79]
[1755787992911,2.87,184.94,184.83,2.79]
[1755787993512,4.81876232,184.93,184.84,138.38]
[1755787994009,4.81876232,184.93,184.83,2.79]
[1755787994216,4.81876232,184.93,184.85,138.38]
[1755787995319,4.81876232,185.02,184.79,2.79]
[1755787995320,4.81876232,184.9,184.79,2.79]
[1755787995518,4.81876232,184.9,184.8,138.38]
[1755787995715,7.68876232,184.91,184.8,138.38]
[1755787995914,7.68876232,184.91,184.81,2.79]
[1755787996612,7.68876232,184.91,184.81,8.2013]
[1755787996808,7.68876232,184.91,184.81,2.79]
[1755787997717,7.68876232,184.91,184.81,8.2014]
[1755787997917,7.68876232,184.91,184.81,2.79]
[1755787998614,4.81876232,184.88,184.82,138.36]
[1755788000020,2.87,184.86,184.82,138.36]
[1755788000515,2.87,184.87,184.78,363.36]
[1755788000723,2.87,184.87,184.8,138.36]
[1755788001914,4.81876232,184.85,184.78,363.36]
[1755788002217,2.87,184.84,184.76,138.34]
[1755788002410,2.87,184.84,184.77,138.34]
[1755788005424,4.81876232,184.82,184.77,138.34]
[1755788005724,7.74876232,184.82,184.77,138.34]
[1755788006120,2.93,184.81,184.77,138.34]
[1755788007217,4.81876232,184.79,184.68,363.54]
[1755788007422,4.81876232,184.79,184.7,2.79]
[1755788008022,4.81876232,184.76,184.7,2.79]
[1755788012525,2.93,184.78,184.7,2.79]
[1755788012923,2.93,184.78,184.71,5.4143]
[1755788013429,2.93,184.78,184.7,2.79]
[1755788016023,4.81876232,184.76,184.69,138.34]
[1755788016225,7.74876232,184.76,184.69,138.34]
[1755788016424,4.81876232,184.73,184.68,363.54]
[1755788016618,4.81876232,184.73,184.68,501.88]
[1755788016619,2.93,184.72,184.68,501.88]
[1755788016825,2.93,184.72,184.68,138.34]
[1755788017026,4.81876232,184.73,184.69,2.79]
[1755788017528,7.74876232,184.73,184.68,141.13]
[1755788018028,7.74876232,184.73,184.69,2.79]
[1755788018230,4.81876232,184.76,184.71,2.79]
[1755788018431,7.74876232,184.76,184.71,2.79]
[1755788018628,2.93,184.75,184.71,2.79]
[1755788019427,4.81876232,184.77,184.71,2.79]
[1755788019829,7.74876232,184.8,184.71,8.2042]
[1755788020127,4.81876232,184.83,184.72,2.79]
[1755788020430,4.81876232,184.83,184.68,143.15876232]
[1755788020733,4.81876232,184.83,184.74,2.79]
[1755788020926,4.81876232,184.83,184.74,141.13]
[1755788021630,4.81876232,184.8,184.65,9.32478121]
[1755788021835,2.93,184.79,184.67,2.79]
[1755788022033,2.93,184.79,184.69,2.79]
[1755788024528,2.93,184.79,184.69,8.2048]
[1755788024735,2.93,184.79,184.69,2.79]
[1755788025233,2.93,184.79,184.7,5.4145]
[1755788025535,2.93,184.79,184.69,2.79]
[1755788025733,2.93,184.79,184.65,4.50601889]
[1755788025734,4.81876232,184.74,184.65,8.2059]
[1755788025937,4.81876232,184.74,184.65,146.4859]
[1755788026635,4.81876232,184.74,184.65,141.07]
[1755788027032,4.81876232,184.74,184.66,5.4156]
[1755788027627,2.93,184.76,184.67,2.79]
[1755788027831,4.81876232,184.77,184.67,2.79]
[1755788028336,4.81876232,184.77,184.69,2.79]
[1755788029153,7.74876232,184.77,184.69,2.79]
[1755788031838,7.74876232,184.77,184.69,8.2049]
[1755788032339,7.74876232,184.77,184.69,2.79]
[1755788032636,4.81876232,184.8,184.69,2.79]
[1755788032838,4.81876232,184.8,184.7,5.4146]
[1755788033237,4.81876232,184.8,184.71,2.8]
[1755788035240,2.94,184.79,184.71,2.8]
[1755788035943,2.94,184.76,184.67,5.4154]
[1755788036143,2.94,184.76,184.67,2.8]
[1755788036337,2.94,184.76,184.67,8.2154]
[1755788036639,2.94,184.76,184.67,2.8]
[1755788038339,4.81876232,184.74,184.67,2.8]
[1755788038544,2.94,184.73,184.67,2.8]
[1755788039840,4.81876232,184.77,184.67,2.8]
[1755788040044,2.94,184.76,184.67,2.8]
[1755788040440,4.81876232,184.71,184.63,5.4165]
[1755788040844,4.81876232,184.71,184.62,141.0]
[1755788041046,7.75876232,184.76,184.64,4.50601889]
[1755788041246,2.94,184.76,184.66,2.8]
[1755788041751,2.94,184.76,184.68,5.415]
[1755788041952,2.94,184.76,184.66,2.8]
[1755788043050,2.94,184.73,184.66,2.8]
[1755788044557,9.0055172,184.85,184.66,2.8]
[1755788044558,2.94,184.76,184.66,2.8]
[1755788045156,2.94,184.76,184.66,8.2156]
[1755788045452,2.94,184.76,184.66,2.8]
[1755788045656,7.75876232,184.81,184.69,4.50601889]
[1755788045955,7.75876232,184.81,184.7,7.30601889]
[1755788046158,7.75876232,184.81,184.7,12.72061889]
[1755788046555,2.94,184.81,184.72,2.8]
[1755788046751,2.94,184.81,184.73,5.4135]
[1755788047257,2.94,184.81,184.72,12.72001889]
[1755788047550,4.81876232,184.84,184.73,2.8]
[1755788047753,2.94,184.85,184.76,2.8]
[1755788047949,2.94,184.85,184.76,7.30601889]
[1755788049359,2.94,184.85,184.77,4.50601889]
[1755788049554,7.75876232,184.92,184.79,2.8]
[1755788049755,2.94,184.91,184.79,7.30601889]
[1755788050057,2.94,184.88,184.79,2.8]
[1755788054163,506.75876232,185.02,184.75,140.88]
[1755788054164,2.94,184.85,184.75,140.88]
[1755788055063,2.94,184.85,184.76,2.8]
[1755788057068,7.75876232,184.89,184.77,2.8]
[1755788057663,7.75876232,184.89,184.77,4.50601889]
[1755788057864,7.75876232,184.89,184.78,2.8]
[1755788058865,4.81876232,184.92,184.79,2.81]
[1755788059068,2.94,184.93,184.85,5.4102]
[1755788059369,2.94,184.93,184.86,2.81]
[1755788059566,2.94,184.93,184.86,8.2197]
[1755788060267,2.94,184.93,184.87,5.4097]
[1755788060467,2.94,184.93,184.86,2.81]
[1755788060860,7.75876232,184.98,184.86,2.81]
[1755788061064,2.94,184.98,184.88,2.81]
[1755788061268,537.94084568,185.1,184.9,4.81876232]
[1755788061269,2.94,185.02,184.9,4.81876232]
[1755788061469,2.94,185.02,184.91,2.81]
[1755788061768,2.94,185.02,184.93,2.81]
[1755788062470,2.94,185.02,184.93,8.2177]
[1755788063265,2.94,185.02,184.93,2.81]
[1755788063664,7.69876232,185.06,184.96,2.8]
[1755788064069,2.88,185.06,184.96,2.8]
[1755788064270,2.88,185.06,184.96,8.2068]
[1755788064464,2.88,185.06,184.96,2.8]
[1755788064672,2.88,185.06,184.97,5.4067]
[1755788064873,2.88,185.06,184.98,2.8]
[1755788066568,2.88,185.1,184.99,4.81876232]
[1755788066767,2.88,185.1,185.02,2.8]
[1755788069073,5.75944269,185.13,185.02,2.8]
[1755788069372,2.88,185.12,185.02,2.8]
[1755788071072,4.81876232,185.16,185.04,2.8]
[1755788071273,2.88,185.17,185.04,2.8]
[1755788071572,2.88,185.17,185.02,4.81876232]
[1755788071573,2.88,185.17,185.06,8.2039]
[1755788071762,2.88,185.17,185.06,2.8]
[1755788072676,0.94042616,185.18,185.06,2.8]
[1755788072874,2.88,185.2,185.08,2.8]
[1755788073077,2.88,185.2,185.08,140.6]
[1755788073371,2.88,185.2,185.08,2.8]
[1755788074378,2.88,185.2,185.11,2.8]
[1755788075274,2.88,185.2,185.11,8.2027]
[1755788076066,2.88,185.2,185.12,5.4023]
[1755788076266,4.81876232,185.26,185.11,2.8]
[1755788076467,2.88,185.25,185.11,2.8]
[1755788076669,2.88,185.25,185.14,2.8]
[1755788077276,2.88,185.25,185.13,2.8]
[1755788078067,4.81876232,185.28,185.16,5.4012]
[1755788078272,4.81876232,185.28,185.17,2.8]
[1755788078479,2.88,185.27,185.17,2.8]
[1755788078974,2.88,185.27,185.19,2.8]
[1755788079179,0.20563,185.3,185.21,5.3997]
[1755788079372,0.20563,185.3,185.22,2.8]
[1755788080280,0.20563,185.3,185.22,8.1994]
[1755788080774,0.20563,185.3,185.23,137.64]
[1755788080979,0.20563,185.3,185.22,2.8]
[1755788082878,0.20563,185.3,185.23,2.8]
[1755788085484,3.08563,185.3,185.23,2.8]
[1755788086085,3.08563,185.3,185.18,10.21926232]
[1755788086285,3.08563,185.3,185.19,2.8]
[1755788087182,7.90439232,185.3,185.19,2.8]
[1755788087585,5.02439232,185.3,185.19,2.8]
[1755788087784,2.88,185.29,185.19,2.8]
[1755788088395,2.88,185.29,185.2,2.8]
[1755788089480,2.88,185.29,185.16,4.81876232]
[1755788089481,2.88,185.29,185.16,145.11876232]
[1755788089787,2.88,185.23,185.12,83.92334809]
[1755788089984,2.88,185.23,185.12,221.42334809]
[1755788090193,2.88,185.23,185.13,2.8]
[1755788091787,2.88,185.23,185.13,8.2021]
[1755788092292,2.88,185.23,185.13,2.8]
[1755788092486,2.88,185.23,185.13,7.61876232]
[1755788092681,2.94,185.27,185.14,2.78]
[1755788093495,2.94,185.27,185.16,2.78]
[1755788093889,2.94,185.27,185.16,8.1812]
[1755788094085,2.94,185.27,185.16,2.78]
[1755788094689,4.81876232,185.25,185.16,2.78]
[1755788094889,2.94,185.24,185.16,2.78]
[1755788096091,2.94,185.24,185.14,142.8618]
[1755788096591,2.94,185.23,185.15,5.4015]
[1755788096798,2.94,185.23,185.14,137.46]
[1755788096993,4.81876232,185.24,185.15,2.78]
[1755788097491,7.75876232,185.26,185.15,2.78]
[1755788099595,7.75876232,185.26,185.15,8.1814]
[1755788099795,7.75876232,185.26,185.15,2.78]
[1755788100196,4.81876232,185.23,185.11,2.78]
[1755788100392,2.94,185.22,185.12,137.42]
[1755788100587,2.94,185.22,185.13,2.78]
[1755788100792,2.94,185.22,185.16,2.78]
[1755788102190,2.94,185.22,185.13,2.78]
[1755788102395,2.94,185.22,185.13,140.2]
[1755788102896,2.94,185.22,185.15,5.4014]
[1755788103497,2.94,185.22,185.13,140.2]
[1755788104402,5.88058403,185.22,185.13,140.2]
[1755788104600,2.94058403,185.24,185.14,2.78]
[1755788104790,2.94058403,185.24,185.17,2.78]
[1755788105895,2.94058403,185.22,185.18,1.84983779]
[1755788106099,2.94,185.2,185.13,137.42]
[1755788106291,2.94,185.17,185.14,1.85052502]
[1755788106493,2.94,185.17,185.15,1.85052502]
[1755788106799,2.94,185.17,185.16,1.85052502]
[1755788106999,2.94,185.17,185.1,500.58]
[1755788107194,2.94,185.17,185.11,1.85335238]
[1755788107495,2.94,185.17,185.12,4.63335238]
[1755788107700,2.94058403,185.16,185.13,1.85335238]
[1755788107900,5.88058403,185.16,185.14,1.85335238]
[1755788108100,5.88058403,185.16,185.15,1.85335238]
[1755788109295,2.94058403,185.16,185.1,137.4]
[1755788109500,2.94058403,185.12,185.11,1.85785755]
[1755788110101,5.88058403,185.12,185.05,140.16]
[1755788110296,2.94,185.12,185.05,137.38]
[1755788110499,2.94,185.09,185.05,137.38]
[1755788110706,2.94,185.08,185.05,137.38]
[1755788111202,154.05342942,185.24,185.06,2.78]
[1755788111203,4.79791222,185.12,185.06,2.78]
[1755788111907,2.94,185.13,185.06,2.78]
[1755788112102,2.94,185.13,185.05,137.38]
[1755788112502,4.79791222,185.12,185.05,137.38]
[1755788112808,4.79791222,185.12,185.05,142.7843]
[1755788113108,4.79791222,185.12,185.05,140.16]
[1755788113606,2.94,185.13,185.05,140.16]
[1755788113806,2.94,185.13,185.06,5.4039]
[1755788114006,2.94,185.13,185.05,140.16]
[1755788114402,7.73791222,185.13,185.05,140.16]
[1755788114609,7.73791222,185.13,185.05,137.38]
[1755788115611,4.79791222,185.1,185.05,137.38]
[1755788115811,2.94,185.08,185.02,2.78]
[1755788116109,4.79791222,185.13,185.02,8.1851]
[1755788116310,2.94,185.12,185.02,2.78]
[1755788117110,2.94,185.12,184.97,9.30393111]
[1755788117111,4.79791222,185.04,184.95,5.4073]
[1755788117316,4.79791222,185.04,184.95,137.38]
[1755788117610,4.79791222,185.04,184.96,2.78]
[1755788118313,2.94,185.03,184.96,2.78]
[1755788118812,2.94,185.03,184.95,137.38]
[1755788118813,4.79791222,185.01,184.95,137.38]
[1755788119412,7.73791222,185.03,184.95,140.16]
[1755788120510,2.94,184.99,184.95,137.38]
[1755788120911,4.79791222,185.0,184.96,2.78]
[1755788121113,7.73791222,185.0,184.96,2.78]
[1755788121308,7.73791222,185.0,184.95,137.38]
[1755788121513,7.73791222,185.0,184.95,140.16]
[1755788121920,2.94,185.04,184.97,2.78]
[1755788122125,7.73791222,185.04,184.97,2.78]
[1755788124231,4.79791222,185.01,184.95,137.38]
[1755788126636,2.83,185.03,184.97,2.8]
[1755788126839,2.83,185.03,184.95,137.38]
[1755788127037,4.79791222,185.01,184.95,137.38]
[1755788127937,2.83,185.0,184.92,2.8]
[1755788128142,4.79791222,184.98,184.92,2.8]
[1755788128539,2.83,184.97,184.9,137.4]
[1755788128744,4.79791222,184.98,184.91,2.8]
[1755788129535,2.83,185.01,184.91,2.8]
[1755788129736,2.83,185.0,184.91,2.8]
[1755788130038,4.79791222,184.98,184.91,8.2085]
[1755788130444,2.94849441,184.97,184.91,8.2085]
[1755788130839,2.94849441,184.99,184.95,2.8]
[1755788131039,2.94849441,184.99,184.9,137.4]
[1755788131243,2.94849441,184.99,184.91,2.8]
[1755788131641,2.94849441,184.97,184.91,2.8]
[1755788132336,2.94849441,185.04,184.9,137.4]
[1755788132337,2.94849441,184.93,184.9,137.4]
[1755788133138,2.83,185.03,184.91,2.8]
[1755788133338,2.94849441,184.98,184.91,2.8]
[1755788134335,5.77849441,184.96,184.91,2.8]
[1755788135245,2.94849441,184.98,184.91,2.8]
[1755788135444,2.94849441,184.98,184.92,5.4082]
[1755788135644,5.77849441,185.0,184.91,2.8]
[1755788136346,2.94849441,184.98,184.91,2.8]
[1755788137246,2.83,185.0,184.91,2.8]
[1755788137539,2.94849441,184.98,184.91,2.8]
[1755788137741,2.94849441,184.98,184.92,5.4081]
[1755788137945,2.94849441,184.98,184.91,2.8]
[1755788138245,5.77849441,185.0,184.91,2.8]
[1755788138848,5.77849441,184.96,184.91,2.8]
[1755788139048,2.94849441,184.96,184.9,137.4]
[1755788139445,2.94849441,184.98,184.91,2.8]
[1755788139648,5.77849441,185.0,184.91,2.8]
[1755788139950,2.83,185.05,184.94,2.94849441]
[1755788140248,5.77849441,185.05,184.95,2.8]
[1755788140453,5.77849441,185.05,184.96,137.4]
[1755788140943,5.77849441,185.05,184.97,5.4066]
[1755788141142,5.77849441,185.05,184.97,8.2066]
[1755788141846,5.77849441,185.05,184.97,2.8]
[1755788142047,2.83,185.05,184.97,2.8]
[1755788142246,5.77849441,185.05,184.97,2.8]
[1755788142438,5.77849441,185.05,184.97,8.2066]
[1755788142948,2.94849441,185.03,184.97,2.8]
[1755788143147,2.94849441,185.01,184.93,2.8]
[1755788143448,2.94849441,185.01,184.95,5.4074]
[1755788143642,2.83,185.06,184.95,8.2074]
[1755788143847,2.94849441,185.03,184.95,2.8]
[1755788144152,5.77849441,185.03,184.95,2.8]
[1755788144339,2.94849441,185.01,184.95,2.8]
[1755788144543,2.94849441,184.99,184.94,137.38]
[1755788144755,2.94849441,184.97,184.91,140.16]
[1755788146148,2.94849441,184.95,184.87,365.8]
[1755788146349,2.94849441,184.95,184.87,503.16]
[1755788146755,2.94849441,184.99,184.89,2.94849441]
[1755788146950,2.94849441,184.99,184.9,2.8]
[1755788147151,5.77849441,184.99,184.9,2.8]
[1755788147947,2.83,184.99,184.9,2.8]
[1755788148147,2.83,185.04,184.93,2.94849441]
[1755788148352,5.77849441,185.04,184.94,140.14]
[1755788149051,2.83,185.04,184.95,2.8]
[1755788149259,2.83,185.04,184.95,5.74849441]
[1755788149556,2.94849441,185.05,184.96,8.2069]
[1755788150253,5.77849441,185.07,184.97,8.35529441]
[1755788150556,5.77849441,185.07,184.98,2.8]
[1755788150759,2.94849441,185.05,184.98,2.8]
[1755788153452,5.77849441,185.07,184.98,2.8]
[1755788153659,5.94849441,185.03,184.98,2.8]
[1755788155761,3.0,185.02,184.95,137.32]
[1755788156361,3.0,185.02,184.95,140.12]
[1755788157057,2.94849441,185.01,184.95,140.12]
[1755788157257,2.94849441,185.03,184.95,140.12]
[1755788158759,2.94849441,185.03,184.96,2.8]
[1755788159359,3.0,185.06,184.96,2.8]
[1755788159559,3.0,185.06,184.96,7.29783053]
[1755788159760,3.0,185.06,184.99,2.8]
[1755788160165,3.0,185.06,184.99,8.2062]
[1755788160362,2.94849441,185.09,184.99,2.8]
[1755788160862,2.94849441,185.09,184.99,8.2061]
[1755788161363,2.94849441,185.09,184.99,2.8]
[1755788161556,3.0,185.08,184.99,2.8]
[1755788162563,2.94849441,185.1,185.02,5.4052]
[1755788162865,2.94849441,185.1,185.0,7.33663531]
[1755788162866,3.0,185.11,185.03,2.8]
[1755788163064,2.94849441,185.1,185.03,2.8]
[1755788163567,3.0,185.09,185.0,4.53663531]
[1755788163766,3.0,185.09,185.0,5.4059]
[1755788164267,3.0,185.09,185.0,9.94253531]
[1755788164467,3.0,185.09,184.99,12.74273531]
[1755788164767,2.94849441,185.08,184.99,7.33663531]
[1755788165164,3.0,185.07,184.98,4.53663531]
[1755788165368,2.94849441,185.05,184.98,4.53663531]
[1755788165560,2.94849441,185.05,184.97,2.8]
[1755788165764,8.91672853,185.13,184.97,2.8]
[1755788165765,2.94849441,185.03,184.97,2.8]
[1755788167069,2.94849441,185.03,184.97,8.2067]
[1755788167368,2.94849441,185.05,184.97,2.8]
[1755788167667,2.94849441,185.05,184.98,5.4063]
[1755788167867,2.94849441,185.05,184.97,2.8]
[1755788168069,5.94849441,185.08,184.99,7.33663531]
[1755788168271,5.94849441,185.08,184.99,2.8]
[1755788168772,5.94849441,185.08,184.99,8.2062]
[1755788169163,5.94849441,185.08,184.99,2.8]
[1755788170069,3.0,185.05,184.97,4.53663531]
[1755788170371,2.94849441,185.04,184.97,4.53663531]
[1755788170570,2.94849441,185.04,184.96,141.77663531]
[1755788171276,2.94849441,185.04,184.96,147.18353531]
[1755788171470,2.94849441,185.04,184.96,141.77663531]
[1755788171771,3.0,185.0,184.96,137.24]
[1755788171970,3.0,185.0,184.95,2.8]
[1755788172171,2.94849441,184.98,184.93,137.2]
[1755788172370,3.0,184.97,184.93,137.2]
[1755788172970,2.94849441,184.98,184.94,2.8]
[1755788173275,2.94849441,185.0,184.94,2.8]
[1755788173471,9.0055172,185.12,184.94,2.8]
[1755788173472,2.94849441,185.02,184.94,7.33663531]